Cogmind - Beta 13 *** ADVENTURER MODE // 2024.04.24 @ 22:57:26 Player: Bert Result: Self-destructed Performance ------------- Evolutions (1) 500 Regions Visited (2) 400 Robots Destroyed (17) 85 Value Destroyed (459) 459 Prototype IDs (0) 0 Alien Tech Used (0) 0 Bonus (0) 0 TOTAL SCORE: 1444 Bonus ------- None Cogmind --------- Core Integrity 312/400 Matter 300/300 Energy 100/100 System Corruption 0% Temperature Warm (186) Movement Walking (120) Location -9/Materials Parts ------- > --- POWER (1) -------- (None) > --- PROPULSION (3) --- Aluminum Leg Aluminum Leg Aluminum Leg > --- UTILITY (3) ------ Medium Storage Unit Visual Processing Unit > --- WEAPON (2) ------- Medium Laser > --- INVENTORY (10) --- Deuterium Engine Deuterium Engine Deuterium Engine Aluminum Leg Terrain Scanner Beam Cannon Peak State ------------ > --- POWER ------------ Deuterium Engine > --- PROPULSION ------- Aluminum Leg Aluminum Leg Aluminum Leg > --- UTILITY ---------- Small Storage Unit Medium Storage Unit Visual Processing Unit > --- WEAPON ----------- Medium Laser Small Laser > --- INVENTORY -------- Deuterium Engine Deuterium Engine Deuterium Engine Aluminum Leg Terrain Scanner Beam Cannon [Rating: 13] Favorites ----------- Power Ion Engine Engine Ion Engine Power Core Light Nuclear Core Propulsion Aluminum Leg Leg Aluminum Leg Wheel Wheel Utility Visual Processing Unit Device Structural Scanner Storage Small Storage Unit Processor Visual Processing Unit Weapon Medium Laser Energy Gun Medium Laser Build | -11 -10 -9 ------- Run | Yrd Mat Mat Slots Evolved 2 | . . 2 Power . | . . . Propulsion 1 | . . 1 Utility 1 | . . 1 Weapon . | . . . Parts Attached 18 | 7 4 7 Power 4 | 1 1 2 Engine 3 | 1 . 2 Core 1 | . 1 . Reactor . | . . . Propulsion 5 | 2 . 3 Treads . | . . . Leg 3 | . . 3 Wheel 2 | 2 . . Hover . | . . . Flight . | . . . Utility 5 | 1 3 1 Device 2 | . 2 . Storage 2 | 1 . 1 Processor 1 | . 1 . Hackware . | . . . Protection . | . . . Artifact . | . . . Weapon 4 | 3 . 1 Energy Gun 4 | 3 . 1 Energy Cannon . | . . . Ballistic Gun . | . . . Ballistic Cannon . | . . . Launcher . | . . . Special Weapon . | . . . Impact Weapon . | . . . Slashing Weapon . | . . . Piercing Weapon . | . . . Special Melee Weapon . | . . . Unidentified Prototypes . | . . . Parts Lost 5 | . 1 4 Power 2 | . . 2 Propulsion 2 | . 1 1 Utility . | . . . Weapon 1 | . . 1 Highest Loss Streak 2 | . 1 2 To Critical Strikes . | . . . Average Slot Usage (%) 87 | . 93 81 Engine 10 | . 13 8 Core 1 | . . 1 Leg 13 | . . 26 Wheel 11 | . 22 1 Device 3 | . 7 . Storage 12 | . 14 11 Processor 8 | . 5 11 Energy Gun 24 | . 28 21 Naked Turns . | . . . Heaviest Build 27 | 14 15 27 Greatest Support 30 | 20 20 30 Greatest Overweight (x) 2 | 1 1 2 Average Overweight (x) . | . . . Largest Inventory Capacity 10 | 8 8 10 Average Capacity 8 | 6 8 9 Most Carried 8 | 5 8 8 Average Carried 5 | 2 6 6 Final Capacity 10 | 8 8 10 Final Carried 8 | 4 8 6 Class Distribution -------------------- 100% | Mutant Dominant Class ---------------- Mutant | -10/Materials Mutant | -9/Materials Resources | -11 -10 -9 ----------- Run | Yrd Mat Mat Matter Collected 362 | 189 106 67 Remotely . | . . . Salvage Created 652 | . 299 353 Parts 31 | . 5 26 Haulers Intercepted . | . . . Recyclers Shooed 1 | . . 1 Parts Field Recycled . | . . . Retrieved Matter . | . . . Parts Self-Destructed . | . . . Prevented . | . . . Kills | -11 -10 -9 ------- Run | Yrd Mat Mat Combat Hostiles Destroyed 13 | . 4 9 Guns 13 | . 4 9 Classes Destroyed 6 | . 3 3 Worker 1 | . . 1 Recycler 1 | . 1 . Watcher 2 | . 1 1 Swarmer 3 | . . 3 Grunt 9 | . 4 5 Sentry 1 | . . 1 Best Kill Streak 5 | . 5 5 Combat Bots Only 4 | . 2 4 Max Kills in Single Turn 1 | . 1 1 Gunslinging . | . . . Exploded . | . . . Melee . | . . . Uniques/NPCs Destroyed . | . . . Combat | -11 -10 -9 -------- Run | Yrd Mat Mat Hostile Shots Fired 83 | . 25 58 Missed 16 | . 2 14 Damage Taken 659 | . 235 424 Core 149 | . 61 88 Absorbed by Shields . | . . . Ignored by Resistances 199 | . 72 127 Core Remaining (%) 87 | 100 75 . Volleys Fired 48 | . 21 27 Largest 2 | . 2 2 Hottest 100 | . 100 90 Shots Fired 91 | . 40 51 Gun 91 | . 40 51 Cannon . | . . . Launcher . | . . . Special . | . . . Kinetic . | . . . Thermal 91 | . 40 51 Explosive . | . . . Electromagnetic . | . . . Robot Hit Streak 30 | . 30 19 Robot Miss Streak 2 | . 2 2 Penetration Max . | . . . Secondary Targets 4 | . 1 3 Max Gunslinging Chain 1 | . 1 1 Shots Hit Robots 75 | . 35 40 Core Hits 30 | . 13 17 Critical Kills . | . . . Critical Parts Destroyed . | . . . Critical Strikes 8 | . 6 2 Burn 8 | . 6 2 Melee Attacks . | . . . Impact . | . . . Slashing . | . . . Piercing . | . . . Sneak Attacks . | . . . Combat Hostiles . | . . . Follow-up Attacks . | . . . Damage Inflicted 791 | . 363 428 Guns 788 | . 363 425 Cannons . | . . . Explosions . | . . . Melee . | . . . Ramming 3 | . . 3 Kinetic . | . . . Thermal 788 | . 363 425 Explosive . | . . . Electromagnetic . | . . . Impact . | . . . Slashing . | . . . Piercing . | . . . Highest Corruption . | . . . Average Corruption . | . . . Corruption Purged . | . . . Corruption Blocked . | . . . Overload Shots . | . . . Overflow Damage . | . . . Projectiles . | . . . Explosions . | . . . Melee . | . . . Knockbacks . | . . . Impact . | . . . Kinetic . | . . . Secondary . | . . . Self-Inflicted Damage 1 | . . 1 Shots . | . . . Rammed 1 | . . 1 Targets Rammed 1 | . . 1 Kicked . | . . . Crushed . | . . . Highest Temperature 518 | . 518 233 Average Temperature 168 | . 247 88 Received Heat Transfer 432 | . 168 264 Effects 8 | . 8 . Shutdowns 2 | . 2 . Energy Bleed 2 | . 2 . Interference 2 | . 2 . Short Circuit 2 | . 2 . Siege Activations . | . . . Robots Corrupted . | . . . Combat Hostiles . | . . . Parts Fried . | . . . Impact Corruptions . | . . . Robots Melted . | . . . Combat Hostiles . | . . . Parts Melted 11 | . 9 2 Heat Transferred 2781 | . 1517 1264 Parts Sabotaged . | . . . Parts Stolen . | . . . Parts Stripped . | . . . Power Chain Reactions . | . . . Alert | -11 -10 -9 ------- Run | Yrd Mat Mat Peak Influence 283 | . 189 283 Initial 67 | . . 67 Average 115 | . 100 161 Maximum Alert Level 1 | . . 1 Low Security (%) 95 | 100 100 89 Level 1 4 | . . 10 Level 2 . | . . . Level 3 . | . . . Level 4 . | . . . Level 5 . | . . . High Security . | . . . Max Security . | . . . Squads Dispatched . | . . . Investigation . | . . . Extermination . | . . . Reinforcement . | . . . Assault . | . . . Garrison . | . . . Intercept . | . . . Searches Triggered . | . . . Construction Impeded . | . . . Haulers Reinforced . | . . . Active Scanning Responses . | . . . Cargo Convoy Interrupts . | . . . Stealth | -11 -10 -9 --------- Run | Yrd Mat Mat Distress Signals 1 | . 1 . Communications Jammed . | . . . Distress Signals . | . . . Times Spotted 20 | . 8 12 Peak Tracking Total 5 | . 3 5 Tactical Retreats 2 | . 2 . Traps | -11 -10 -9 ------- Run | Yrd Mat Mat Traps Triggered . | . . . Indirectly . | . . . Trap Hack Attempts . | . . . Triggered . | . . . Disarmed . | . . . Reprogrammed . | . . . Reused . | . . . Traps Extracted . | . . . Installed . | . . . Triggered . | . . . Machines | -11 -10 -9 ---------- Run | Yrd Mat Mat Machines Disabled . | . . . Max in Single Turn . | . . . Machines Repaired . | . . . Machines Dismantled . | . . . Machines Sabotaged . | . . . Overloaded Fab Kills . | . . . Hacking | -11 -10 -9 --------- Run | Yrd Mat Mat Machines Accessed 4 | . 1 3 Terminals 4 | . 1 3 Fabricators . | . . . Repair Stations . | . . . Recycling Units . | . . . Scanalyzers . | . . . Garrison Access . | . . . Total Hacks 8 | . 2 6 Successful 6 | . 2 4 Failed 2 | . . 2 Catastrophic 1 | . . 1 Database Lockouts . | . . . Manual . | . . . Terminals 8 | . 2 6 Fabricators . | . . . Repair Stations . | . . . Recycling Units . | . . . Scanalyzers . | . . . Garrison Access . | . . . Terminal Hacks 6 | . 2 4 Alert Level 2 | . . 2 Surveillance Status 1 | . . 1 Hauler Manifests 2 | . 1 1 Registered Prototypes 1 | . 1 . Fabricator Hacks . | . . . Repair Station Hacks . | . . . Recycling Unit Hacks . | . . . Scanalyzer . | . . . Garrison Access Hacks . | . . . Unauthorized Hacks . | . . . Terminals . | . . . Fabricators . | . . . Repair Stations . | . . . Recycling Units . | . . . Scanalyzers . | . . . Garrison Access . | . . . Data Cores Recovered . | . . . Used . | . . . Hacking Detections 2 | . 1 1 Full Trace Events . | . . . Feedback Events . | . . . Feedback Blocked . | . . . Robot Schematics Acquired . | . . . Robots Built . | . . . Authchips . | . . . Time . | . . . Total Robot Build Rating . | . . . Part Schematics Acquired . | . . . Parts Built . | . . . Authchips . | . . . Time . | . . . Total Part Build Rating . | . . . Parts Repaired . | . . . Time . | . . . Parts Recycled . | . . . Recycled Matter . | . . . Retrieved Matter . | . . . Retrieved Components . | . . . Parts Scanalyzed . | . . . Part Schematics Acquired . | . . . Parts Damaged . | . . . Bothacking | -11 -10 -9 ------------ Run | Yrd Mat Mat Used RIF Installer . | . . . Robots Hacked . | . . . Non-combat . | . . . Combat . | . . . Robot Hacks Applied . | . . . Relay Couplers Released . | . . . Fabnet Peak Effective % . | . . . Robots Rewired . | . . . Allies Hacked . | . . . Hacks Repelled . | . . . Allies | -11 -10 -9 -------- Run | Yrd Mat Mat Total Allies . | . . . Largest Group . | . . . Highest-Rated Group . | . . . Highest-Rated Ally . | . . . Total Orders . | . . . Ally Attacks . | . . . Total Damage . | . . . Kills . | . . . Allies Corrupted . | . . . Allies Melted . | . . . Intel | -11 -10 -9 ------- Run | Yrd Mat Mat Robot Analysis Total . | . . . Derelict Logs Recovered . | . . . Drone Launches . | . . . Drone Recoveries . | . . . Exploration | -11 -10 -9 ------------- Run | Yrd Mat Mat Turns Passed 710 | 81 315 314 Spaces Moved 509 | 75 246 188 Core 22 | 20 . 2 Treads . | . . . Legs 159 | . . 159 Wheels 328 | 55 246 27 Hover . | . . . Flight . | . . . Fastest Speed 50 | 50 80 95 Average Speed 97 | 84 87 116 Slowest Speed 150 | 100 95 150 Overloaded Moves . | . . . Propulsion Burnouts . | . . . Robots Hopped . | . . . Cave-ins Triggered . | . . . Exploration Rate (%) 20 | 4 39 18 Regions Visited 2 Branch Regions . Pre-discovered Areas . | . . . Known Exits Taken . | . . . Unknown Exits Taken 2 | 1 1 . Scrap Searched . | . . . Spaces Dug . | . . . Terrain Destroyed . | . . . Melee . | . . . Projectile . | . . . AOE . | . . . Terrain Rammed . | . . . Walls Destroyed . | . . . Machines Disabled . | . . . Actions | -11 -10 -9 --------- Run | Yrd Mat Mat Total 632 | 92 306 234 Wait 28 | . 28 . Move 507 | 74 245 188 Hop . | . . . Pick Up 22 | 10 6 6 Fast Attach . | . . . Attach 16 | 7 3 6 Detach 3 | 1 1 1 Swap 2 | . 1 1 Drop 5 | . 1 4 Fire 48 | . 21 27 Melee . | . . . Ram 1 | . . 1 Kick . | . . . Crush . | . . . Escape Stasis . | . . . Rewire . | . . . Trap . | . . . Miscellaneous . | . . . Route ------- -11/Scrapyard -10/Materials (discovered 2 exits: *Mat / [*Min]) -9/Materials History --------- Turn | Location | Event 14 | -11/Scrapyard | Discovered new exit (range 16) 82 | -11/Scrapyard | Entered Materials 249 | -10/Materials | Discovered new exit (range 12) 302 | -10/Materials | Build established: Mutant 381 | -10/Materials | Discovered new exit (range 15) 397 | -10/Materials | Entered another Materials area 397 | -9/Materials | Evolved 2 slots: Propulsion x1, Utility x1 711 | -9/Materials | Self-destructed Last Messages --------------- 00678_ G-34 Mercenary suffers critical hit (Burn). 00678_ Sml. Laser melted. 00678_ G-34 Mercenary destroyed. 00680_ K-01 Serf collects debris. 00683_ R-06 Scavenger collects Aluminum Leg. 00692_ Connecting with Terminal... >>Enumerate(Surveillance) Retrieving latest reported positions... Found 4 active surveillance squads. Downloaded coordinate data. 00693_ S-10 Pest destroyed. 00693_ Switching to secondary target: Y-45 Defender. 00696_ K-01 Serf destroyed. 00702_ S-10 Pest suffers critical hit (Burn). 00702_ S-10 Pest destroyed. 00702_ Switching to secondary target: Y-45 Defender. 00705_ Sml. Laser destroyed. 00707_ S-10 Pest destroyed. 00711_ Deuterium Engine destroyed. 00711_ Critical hit (Burn: +37). Map ----- +----------------------------------------------------+ | ??????????# """ """ #??# #????# #??? | | ??????????# """ """ #??# #????#!! #??? | | ??????????# """ """ #??# #????#!! % #??? | | ??????????# #??# #????##### #??? | | ??????????# #??# #????????#%% #### | | ??????????# #??# #????##### =^^ | | ????####### #??# ###### ^^ | | ##### ###+########## %%^ % | | % ########+############ | | T a#????# #????????? | | ##### """ #????# #????????? | | ????# ####### """ #????# """ #????????? | | ????## ##?????# """ ##????# """ #????????? | | ###### #??????# #?????# """ #????????? | | # #??????+ #?????# #????????? | | + #??????# a #?????# ! #????????? | | # #??????# ##### #?????#######????????? | | # #??????# #???# #????????????????????? | | ###### ##?????## ##???# #????????????????????? | | ????# #??????# #????# #????????????????????? | | ????# #??????# #????# #????????????????????? | | ????# T #??????#/#????# a#????????????????????? | | ????# #??# ?? ???## r##???????????????????? | | ????# #??# ???# r #???????????????????? | | ????### ###??# # #???????????????????? | | ??????# #????# + @T #???????????????????? | | ???####+###### # #???????????????????? | | ???# # ???# = #???????????????????? | | ???# """ """ # ?? ????##%! ##???????????????????? | | ???# "R """ #??? ??????#=* #????????????????????? | | ???# """ """ #??????????# #????????????????????? | | ???# #??????????# #????????????????????? | | ???# ]] #??????????# u #????????????????????? | | ???# ] #??????????#[ #????????????????????? | | ??? ! #??????????#s% #????????????????????? | | ??######+#####?????????? [ [ ????????????????????? | | ???????????????????????? Y ????????????????????? | | ???????????????????????? ????????????????????? | | ???????????????????????? ????????????????????? | | ???????????????????????? #???????????????????? | | ?????????????????????????#####???????????????????? | | ?????????????????????????????????????????????????? | | ?????????????????????????????????????????????????? | | ?????????????????????????????????????????????????? | | ?????????????????????????????????????????????????? | | ?????????????????????????????????????????????????? | | ?????????????????????????????????????????????????? | | ?????????????????????????????????????????????????? | | ?????????????????????????????????????????????????? | | ?????????????????????????????????????????????????? | +----------------------------------------------------+ Best States ------------- Heat Dissipation 28 Energy Generation 14 Energy Capacity 275 Matter Stores 300 Matter Capacity 300 Sight Range 18 Terrain Scan Range 14 Terrain Scan Density 10 Resistance: KI 20 Resistance: TH 20 Resistance: EX 20 Resistance: EM 20 Resistance: I 20 Resistance: S 20 Resistance: P 20 Evasion (%) 55 Offensive Hacking 10 Item Schematics ----------------- None Robot Schematics ------------------ None Fabricated ------------ Nothing Alien Tech Used ----------------- None Achievements -------------- None Challenges ------------ None Game ------ Seed CoolingTachyonSlayer Manual? 0 Play Time 00:10:39 Cumulative 17.6 hours Start 2024.04.22 @ 22:33:21 End 2024.04.24 @ 22:57:26 Sessions 2 Manual Loads 0 Difficulty Adventurer Special Mode None Game No. 32 Rogue 0 Adventurer 32 Explorer 0 Win Type - Total 0 Types 0/0/0/0/0/0/0/0/0 Lore% 27 Gallery% 29 Achievement% 22 Wizard Run 0 Options --------- Layout 0 ASCII 0 Keyboard 1 Movement Numpad Keybinds 0 Fullscreen 1 Font 18/SmallcapsGlow Map View 76x50 Zoom Use 0% Tactical HUD 1 Map Filters NONE Filters NONE Steam 1 RUN: 8daf96f8-48ec-4a4e-aa34-c048d22e35af